[Event "Titled Tuesday Blitz November 15 Late 2022"]
[White "Milchev, Nikolay"]
[Black "Bashirli, Nail"]
[WhiteFideId "2906090"]
[BlackFideId "13406809"]
[WhiteElo "2542"]
[BlackElo "2771"]
[Result "1/2-1/2"]
[Round "07"]
[TimeControl "180+1"]
[Date "2022.11.16"]
[WhiteClock "0:00:16"]
[BlackClock "0:00:08"]

1. Nf3 {[%clk 0:03:00]}  d5 {[%clk 0:02:52]} 2. c4 {[%clk 0:03:01]}  dxc4 {[%clk 0:02:48]} 3. Na3 {[%clk 0:03:00]}  Nc6 {[%clk 0:02:47]} 4. Nxc4 {[%clk 0:03:00]}  g6 {[%clk 0:02:48]} 5. d4 {[%clk 0:03:00]}  Bg7 {[%clk 0:02:47]} 6. h3 {[%clk 0:03:00]}  Nf6 {[%clk 0:02:47]} 7. e3 {[%clk 0:02:58]}  O-O {[%clk 0:02:47]} 8. Be2 {[%clk 0:02:59]}  b6 {[%clk 0:02:46]} 9. O-O {[%clk 0:02:58]}  Bb7 {[%clk 0:02:46]} 10. b3 {[%clk 0:02:58]}  Ne4 {[%clk 0:02:42]} 11. Bb2 {[%clk 0:02:58]}  Nb4 {[%clk 0:02:41]} 12. a3 {[%clk 0:02:57]}  Nd5 {[%clk 0:02:41]} 13. Qc2 {[%clk 0:02:57]}  f5 {[%clk 0:02:40]} 14. Rfd1 {[%clk 0:02:55]}  Rc8 {[%clk 0:02:40]} 15. Rac1 {[%clk 0:02:54]}  e6 {[%clk 0:02:39]} 16. Nce5 {[%clk 0:02:46]}  Qe7 {[%clk 0:02:38]} 17. Nc6 {[%clk 0:02:44]}  Qd6 {[%clk 0:02:37]} 18. Nfe5 {[%clk 0:02:42]}  Bh6 {[%clk 0:02:22]} 19. Bf3 {[%clk 0:02:40]}  Bxc6 {[%clk 0:02:18]} 20. Bxe4 {[%clk 0:02:23]}  Bb7 {[%clk 0:01:52]} 21. Bf3 {[%clk 0:02:17]}  Bg7 {[%clk 0:01:51]} 22. Nc6 {[%clk 0:02:12]}  a6 {[%clk 0:01:50]} 23. b4 {[%clk 0:02:13]}  Ba8 {[%clk 0:01:43]} 24. Qc4 {[%clk 0:02:01]}  Rf7 {[%clk 0:01:39]} 25. Na7 {[%clk 0:01:57]}  Rb8 {[%clk 0:01:36]} 26. Qxa6 {[%clk 0:01:57]}  c6 {[%clk 0:01:33]} 27. b5 {[%clk 0:01:47]}  cxb5 {[%clk 0:01:31]} 28. Nxb5 {[%clk 0:01:45]}  Qd7 {[%clk 0:01:30]} 29. Nc3 {[%clk 0:00:40]}  Nxc3 {[%clk 0:01:13]} 30. Rxc3 {[%clk 0:00:41]}  Bxf3 {[%clk 0:01:03]} 31. gxf3 {[%clk 0:00:42]}  Qd5 {[%clk 0:01:03]} 32. Kg2 {[%clk 0:00:35]}  f4 {[%clk 0:01:00]} 33. e4 {[%clk 0:00:35]}  Qg5+ {[%clk 0:01:01]} 34. Kh2 {[%clk 0:00:31]}  Qh4 {[%clk 0:01:00]} 35. Rc8+ {[%clk 0:00:30]}  Rf8 {[%clk 0:00:57]} 36. Rxf8+ {[%clk 0:00:24]}  Rxf8 {[%clk 0:00:53]} 37. Rd2 {[%clk 0:00:24]}  Qh5 {[%clk 0:00:50]} 38. Qe2 {[%clk 0:00:20]}  Re8 {[%clk 0:00:44]} 39. Qd3 {[%clk 0:00:16]}  Qg5 {[%clk 0:00:36]} 40. Qb3 {[%clk 0:00:15]}  Bf8 {[%clk 0:00:33]} 41. d5 {[%clk 0:00:15]}  exd5 {[%clk 0:00:12]} 42. Qxd5+ {[%clk 0:00:16]}  Qxd5 {[%clk 0:00:11]} 43. Rxd5 {[%clk 0:00:17]}  Rc8 {[%clk 0:00:10]} 44. Bd4 {[%clk 0:00:17]}  Bxa3 {[%clk 0:00:09]} 45. Bxb6 {[%clk 0:00:17]}  Bf8 {[%clk 0:00:09]} 46. Bd4 {[%clk 0:00:16]}  Rc7 {[%clk 0:00:09]} 47. h4 {[%clk 0:00:17]}  Kf7 {[%clk 0:00:09]} 48. Kh3 {[%clk 0:00:17]}  Rb7 {[%clk 0:00:07]} 49. h5 {[%clk 0:00:17]}  Be7 {[%clk 0:00:06]} 50. hxg6+ {[%clk 0:00:18]}  hxg6 {[%clk 0:00:06]} 51. Kg4 {[%clk 0:00:18]}  g5 {[%clk 0:00:07]} 52. Be5 {[%clk 0:00:17]}  Ke6 {[%clk 0:00:07]} 53. Bd4 {[%clk 0:00:18]}  Rb3 {[%clk 0:00:07]} 54. Re5+ {[%clk 0:00:18]}  Kf7 {[%clk 0:00:08]} 55. Rf5+ {[%clk 0:00:18]}  Ke6 {[%clk 0:00:08]} 56. Re5+ {[%clk 0:00:17]}  Kf7 {[%clk 0:00:08]} 57. Ra5 {[%clk 0:00:17]}  Rd3 {[%clk 0:00:08]} 58. Ra4 {[%clk 0:00:16]}  Rd1 {[%clk 0:00:08]} 59. Kf5 {[%clk 0:00:16]}  Rb1 {[%clk 0:00:08]} 60. Be5 {[%clk 0:00:16]}  Rb5 {[%clk 0:00:07]} 61. Ra7 {[%clk 0:00:16]}  Rc5 {[%clk 0:00:08]} 62. Rb7 {[%clk 0:00:16]}  Ra5 {[%clk 0:00:08]} 63. Rd7 {[%clk 0:00:17]}  Rb5 {[%clk 0:00:08]} 64. Rd5 {[%clk 0:00:16]}  Rb3 {[%clk 0:00:07]} 65. Rd7 {[%clk 0:00:17]}  Rb5 {[%clk 0:00:07]} 66. Rd5 {[%clk 0:00:17]}  Rb3 {[%clk 0:00:08]} 67. Rd7 {[%clk 0:00:16]}  Rb5 {[%clk 0:00:08]} 1/2-1/2


[Site "https://www.chess.com"]

[Event "Titled Tuesday Blitz November 15 Late 2022"]
[White "Palencia Morales, Wilson Guillermo"]
[Black "Paravyan, David"]
[WhiteFideId "4401859"]
[BlackFideId "4194985"]
[WhiteElo "2160"]
[BlackElo "2546"]
[Result "0-1"]
[Round "07"]
[TimeControl "180+1"]
[Date "2022.11.16"]
[WhiteClock "0:00:59"]
[BlackClock "0:00:44"]

1. d4 {[%clk 0:03:00]}  d5 {[%clk 0:02:12]} 2. c4 {[%clk 0:02:58]}  e6 {[%clk 0:02:09]} 3. Nf3 {[%clk 0:02:58]}  Nf6 {[%clk 0:02:07]} 4. Nc3 {[%clk 0:02:59]}  Bb4 {[%clk 0:02:03]} 5. Bg5 {[%clk 0:02:57]}  h6 {[%clk 0:02:03]} 6. Bxf6 {[%clk 0:02:56]}  Qxf6 {[%clk 0:02:03]} 7. e3 {[%clk 0:02:56]}  O-O {[%clk 0:02:00]} 8. Rc1 {[%clk 0:02:52]}  Nd7 {[%clk 0:01:58]} 9. a3 {[%clk 0:02:51]}  Bxc3+ {[%clk 0:01:57]} 10. Rxc3 {[%clk 0:02:51]}  c6 {[%clk 0:01:58]} 11. Be2 {[%clk 0:02:50]}  Rd8 {[%clk 0:01:56]} 12. cxd5 {[%clk 0:02:46]}  exd5 {[%clk 0:01:55]} 13. O-O {[%clk 0:02:42]}  Qe7 {[%clk 0:01:54]} 14. b4 {[%clk 0:02:39]}  a6 {[%clk 0:01:53]} 15. Qb3 {[%clk 0:02:37]}  Nf6 {[%clk 0:01:51]} 16. Ne5 {[%clk 0:02:37]}  Ne4 {[%clk 0:01:50]} 17. Rc2 {[%clk 0:02:37]}  Bf5 {[%clk 0:01:50]} 18. Bd3 {[%clk 0:02:34]}  f6 {[%clk 0:01:45]} 19. Nf3 {[%clk 0:02:33]}  Bg4 {[%clk 0:01:46]} 20. Ne1 {[%clk 0:02:33]}  Nd6 {[%clk 0:01:46]} 21. a4 {[%clk 0:02:28]}  Be6 {[%clk 0:01:46]} 22. Nf3 {[%clk 0:02:21]}  Bf7 {[%clk 0:01:46]} 23. Nd2 {[%clk 0:02:21]}  Qd7 {[%clk 0:01:44]} 24. Rb1 {[%clk 0:02:15]}  b5 {[%clk 0:01:44]} 25. a5 {[%clk 0:02:11]}  Nc4 {[%clk 0:01:44]} 26. Qc3 {[%clk 0:02:08]}  h5 {[%clk 0:01:44]} 27. Nb3 {[%clk 0:02:08]}  h4 {[%clk 0:01:44]} 28. h3 {[%clk 0:02:07]}  Ra7 {[%clk 0:01:41]} 29. Nc5 {[%clk 0:02:07]}  Qe7 {[%clk 0:01:40]} 30. Re1 {[%clk 0:02:04]}  g5 {[%clk 0:01:35]} 31. e4 {[%clk 0:02:01]}  dxe4 {[%clk 0:01:36]} 32. Nxe4 {[%clk 0:01:59]}  f5 {[%clk 0:01:33]} 33. d5 {[%clk 0:01:44]}  fxe4 {[%clk 0:01:30]} 34. Bxe4 {[%clk 0:01:42]}  Qd6 {[%clk 0:01:23]} 35. dxc6 {[%clk 0:01:34]}  Re7 {[%clk 0:01:23]} 36. Rce2 {[%clk 0:01:32]}  Re5 {[%clk 0:01:18]} 37. c7 {[%clk 0:01:26]}  Rc8 {[%clk 0:01:03]} 38. Bh7+ {[%clk 0:01:13]}  Kxh7 {[%clk 0:01:02]} 39. Rxe5 {[%clk 0:01:13]}  Nxe5 {[%clk 0:01:02]} 40. Rxe5 {[%clk 0:01:10]}  Rxc7 {[%clk 0:01:02]} 41. Qe3 {[%clk 0:01:08]}  Qd1+ {[%clk 0:00:46]} 42. Kh2 {[%clk 0:01:07]}  Qc1 {[%clk 0:00:46]} 43. Qd3+ {[%clk 0:00:59]}  Bg6 {[%clk 0:00:45]} 44. Qd6 {[%clk 0:00:59]}  Qf4+ {[%clk 0:00:44]} 0-1


[Site "https://www.chess.com"]

[Event "Titled Tuesday Blitz November 15 Late 2022"]
[White "Pino Perez, Lazaro"]
[Black "Freile Martin, Javier"]
[WhiteFideId "3517055"]
[BlackFideId "3600165"]
[WhiteElo "2170"]
[BlackElo "2320"]
[Result "1-0"]
[Round "07"]
[TimeControl "180+1"]
[Date "2022.11.16"]
[WhiteClock "0:01:32"]
[BlackClock "0:00:30"]

1. d4 {[%clk 0:02:55]}  Nf6 {[%clk 0:02:59]} 2. Bf4 {[%clk 0:02:54]}  e6 {[%clk 0:02:55]} 3. e3 {[%clk 0:02:53]}  b6 {[%clk 0:02:56]} 4. Qf3 {[%clk 0:02:52]}  Nc6 {[%clk 0:02:54]} 5. Nc3 {[%clk 0:02:51]}  Bb7 {[%clk 0:02:54]} 6. O-O-O {[%clk 0:02:45]}  Rb8 {[%clk 0:02:46]} 7. e4 {[%clk 0:02:45]}  d5 {[%clk 0:02:36]} 8. exd5 {[%clk 0:02:29]}  Nxd5 {[%clk 0:02:34]} 9. Nxd5 {[%clk 0:02:29]}  exd5 {[%clk 0:02:30]} 10. Qg3 {[%clk 0:02:23]}  Rc8 {[%clk 0:02:25]} 11. Bb5 {[%clk 0:02:12]}  f6 {[%clk 0:02:21]} 12. Re1+ {[%clk 0:01:46]}  Kf7 {[%clk 0:02:20]} 13. Qh3 {[%clk 0:01:46]}  Nxd4 {[%clk 0:02:04]} 14. Nf3 {[%clk 0:01:46]}  Bd6 {[%clk 0:00:54]} 15. Bxd6 {[%clk 0:01:34]}  Nxb5 {[%clk 0:00:49]} 16. Qe6+ {[%clk 0:01:32]}  Kg6 {[%clk 0:00:30]} 1-0


[Site "https://www.chess.com"]

[Event "Titled Tuesday Blitz November 15 Late 2022"]
[White "Radovanovic, Dusan"]
[Black "Gerbelli Neto, Eduardo"]
[WhiteFideId "926868"]
[BlackFideId "2103281"]
[WhiteElo "2341"]
[BlackElo "2178"]
[Result "1-0"]
[Round "07"]
[TimeControl "180+1"]
[Date "2022.11.16"]
[WhiteClock "0:00:29"]
[BlackClock "0:00:10"]

1. e4 {[%clk 0:03:00]}  e5 {[%clk 0:02:58]} 2. Nf3 {[%clk 0:03:00]}  Nc6 {[%clk 0:02:56]} 3. Nc3 {[%clk 0:03:00]}  Nf6 {[%clk 0:02:56]} 4. Bb5 {[%clk 0:02:59]}  Bb4 {[%clk 0:02:53]} 5. O-O {[%clk 0:02:57]}  d6 {[%clk 0:02:51]} 6. Nd5 {[%clk 0:02:56]}  Ba5 {[%clk 0:02:47]} 7. d4 {[%clk 0:02:55]}  exd4 {[%clk 0:02:46]} 8. Bg5 {[%clk 0:02:54]}  Bd7 {[%clk 0:02:39]} 9. Bxf6 {[%clk 0:02:37]}  gxf6 {[%clk 0:02:38]} 10. Nxd4 {[%clk 0:02:35]}  Ne5 {[%clk 0:02:25]} 11. Bxd7+ {[%clk 0:02:30]}  Kxd7 {[%clk 0:02:26]} 12. f4 {[%clk 0:02:24]}  Ng6 {[%clk 0:02:19]} 13. Qg4+ {[%clk 0:02:18]}  Ke8 {[%clk 0:02:19]} 14. Qf5 {[%clk 0:02:02]}  Bb6 {[%clk 0:02:16]} 15. c3 {[%clk 0:01:55]}  c6 {[%clk 0:02:14]} 16. Nxf6+ {[%clk 0:01:52]}  Ke7 {[%clk 0:01:48]} 17. Kh1 {[%clk 0:01:39]}  Kf8 {[%clk 0:01:03]} 18. Rad1 {[%clk 0:01:26]}  Qe7 {[%clk 0:00:45]} 19. e5 {[%clk 0:01:19]}  Bd8 {[%clk 0:00:38]} 20. Rde1 {[%clk 0:00:55]}  dxe5 {[%clk 0:00:35]} 21. fxe5 {[%clk 0:00:55]}  Bc7 {[%clk 0:00:21]} 22. e6 {[%clk 0:00:47]}  Nf4 {[%clk 0:00:10]} 23. Rxf4 {[%clk 0:00:41]}  Bxf4 {[%clk 0:00:09]} 24. Qxf4 {[%clk 0:00:35]}  Rd8 {[%clk 0:00:10]} 25. Qh6# {[%clk 0:00:29]} 1-0


[Site "https://www.chess.com"]

[Event "Titled Tuesday Blitz November 15 Late 2022"]
[White "Rasulov, Vugar"]
[Black "Barria Zuniga, Daniel"]
[WhiteFideId "13402390"]
[BlackFideId "3400816"]
[WhiteElo "2509"]
[BlackElo "2414"]
[Result "1-0"]
[Round "07"]
[TimeControl "180+1"]
[Date "2022.11.16"]
[WhiteClock "0:02:33"]
[BlackClock "0:00:21"]

1. g3 {[%clk 0:03:00]}  d5 {[%clk 0:02:58]} 2. Bg2 {[%clk 0:03:01]}  e6 {[%clk 0:02:58]} 3. c4 {[%clk 0:03:01]}  Nf6 {[%clk 0:02:59]} 4. Nf3 {[%clk 0:03:01]}  Be7 {[%clk 0:03:00]} 5. O-O {[%clk 0:03:01]}  O-O {[%clk 0:03:00]} 6. d4 {[%clk 0:03:02]}  dxc4 {[%clk 0:03:01]} 7. Nc3 {[%clk 0:03:01]}  Nc6 {[%clk 0:02:56]} 8. Bg5 {[%clk 0:02:58]}  Rb8 {[%clk 0:02:50]} 9. a4 {[%clk 0:02:55]}  b6 {[%clk 0:02:47]} 10. e4 {[%clk 0:02:54]}  Na5 {[%clk 0:02:44]} 11. h4 {[%clk 0:02:50]}  Bb7 {[%clk 0:02:36]} 12. Re1 {[%clk 0:02:44]}  h6 {[%clk 0:02:36]} 13. Bxf6 {[%clk 0:02:44]}  Bxf6 {[%clk 0:02:34]} 14. Qc2 {[%clk 0:02:41]}  Nb3 {[%clk 0:02:19]} 15. Rad1 {[%clk 0:02:41]}  Nxd4 {[%clk 0:02:19]} 16. Nxd4 {[%clk 0:02:41]}  Bxd4 {[%clk 0:02:20]} 17. Nb5 {[%clk 0:02:38]}  c5 {[%clk 0:02:20]} 18. Nxa7 {[%clk 0:02:35]}  Qc7 {[%clk 0:02:12]} 19. Nb5 {[%clk 0:02:34]}  Qe5 {[%clk 0:02:01]} 20. Kh2 {[%clk 0:02:34]}  Ba6 {[%clk 0:01:51]} 21. f4 {[%clk 0:02:34]}  Qf6 {[%clk 0:01:51]} 22. e5 {[%clk 0:02:32]}  Qe7 {[%clk 0:01:50]} 23. Nxd4 {[%clk 0:02:30]}  cxd4 {[%clk 0:01:50]} 24. Rxd4 {[%clk 0:02:31]}  Rfd8 {[%clk 0:01:48]} 25. Red1 {[%clk 0:02:31]}  Rxd4 {[%clk 0:01:48]} 26. Rxd4 {[%clk 0:02:32]}  Rd8 {[%clk 0:01:48]} 27. Qd2 {[%clk 0:02:32]}  Rxd4 {[%clk 0:01:48]} 28. Qxd4 {[%clk 0:02:33]}  Qb4 {[%clk 0:01:46]} 29. h5 {[%clk 0:02:32]}  Qxa4 {[%clk 0:00:26]} 30. Qd8+ {[%clk 0:02:30]}  Kh7 {[%clk 0:00:26]} 31. Be4+ {[%clk 0:02:30]}  g6 {[%clk 0:00:27]} 32. hxg6+ {[%clk 0:02:31]}  fxg6 {[%clk 0:00:28]} 33. Qe7+ {[%clk 0:02:31]}  Kg8 {[%clk 0:00:27]} 34. Qxe6+ {[%clk 0:02:31]}  Kf8 {[%clk 0:00:26]} 35. Qd6+ {[%clk 0:02:31]}  Kg8 {[%clk 0:00:22]} 36. Bd5+ {[%clk 0:02:31]}  Kg7 {[%clk 0:00:21]} 37. Qe7+ {[%clk 0:02:31]}  Kh8 {[%clk 0:00:20]} 38. Qf8+ {[%clk 0:02:32]}  Kh7 {[%clk 0:00:21]} 39. Qg8# {[%clk 0:02:33]} 1-0


[Site "https://www.chess.com"]

[Event "Titled Tuesday Blitz November 15 Late 2022"]
[White "Riehle, Marco"]
[Black "Saveliev, Alexei"]
[WhiteFideId "12904392"]
[BlackFideId "24128546"]
[WhiteElo "2462"]
[BlackElo "2290"]
[Result "1-0"]
[Round "07"]
[TimeControl "180+1"]
[Date "2022.11.15"]
[WhiteClock "0:00:38"]
[BlackClock "0:00:06"]

1. e4 {[%clk 0:02:59]}  g6 {[%clk 0:03:00]} 2. d4 {[%clk 0:02:58]}  Bg7 {[%clk 0:03:01]} 3. c4 {[%clk 0:02:59]}  d6 {[%clk 0:03:01]} 4. Nc3 {[%clk 0:02:59]}  Nc6 {[%clk 0:03:02]} 5. Be3 {[%clk 0:02:58]}  e5 {[%clk 0:03:02]} 6. d5 {[%clk 0:02:58]}  Nce7 {[%clk 0:03:02]} 7. g4 {[%clk 0:02:58]}  f5 {[%clk 0:03:02]} 8. gxf5 {[%clk 0:02:59]}  gxf5 {[%clk 0:03:03]} 9. Qh5+ {[%clk 0:02:59]}  Kf8 {[%clk 0:03:04]} 10. exf5 {[%clk 0:02:59]}  Nf6 {[%clk 0:03:04]} 11. Qe2 {[%clk 0:02:58]}  Bxf5 {[%clk 0:03:01]} 12. Bh3 {[%clk 0:02:53]}  Qd7 {[%clk 0:03:01]} 13. Bxf5 {[%clk 0:02:52]}  Qxf5 {[%clk 0:03:01]} 14. O-O-O {[%clk 0:02:52]}  a6 {[%clk 0:02:59]} 15. Nf3 {[%clk 0:02:51]}  h6 {[%clk 0:02:45]} 16. Rhg1 {[%clk 0:02:44]}  Kf7 {[%clk 0:02:44]} 17. Rg2 {[%clk 0:02:41]}  Rag8 {[%clk 0:02:42]} 18. Rdg1 {[%clk 0:02:41]}  Bf8 {[%clk 0:02:39]} 19. Nd2 {[%clk 0:02:12]}  Rxg2 {[%clk 0:02:22]} 20. Rxg2 {[%clk 0:02:13]}  Rg8 {[%clk 0:02:22]} 21. Rxg8 {[%clk 0:02:12]}  Kxg8 {[%clk 0:02:23]} 22. b4 {[%clk 0:02:08]}  Ng6 {[%clk 0:01:44]} 23. Kb2 {[%clk 0:02:01]}  Bg7 {[%clk 0:01:27]} 24. f3 {[%clk 0:01:59]}  Nf4 {[%clk 0:01:21]} 25. Bxf4 {[%clk 0:01:51]}  exf4 {[%clk 0:01:22]} 26. Kb3 {[%clk 0:01:51]}  Kf7 {[%clk 0:01:15]} 27. a4 {[%clk 0:01:39]}  c6 {[%clk 0:01:05]} 28. Nde4 {[%clk 0:01:35]}  Nxe4 {[%clk 0:01:02]} 29. Nxe4 {[%clk 0:01:08]}  Qe5 {[%clk 0:01:00]} 30. dxc6 {[%clk 0:01:08]}  bxc6 {[%clk 0:01:01]} 31. Qd2 {[%clk 0:01:04]}  d5 {[%clk 0:00:53]} 32. cxd5 {[%clk 0:01:03]}  cxd5 {[%clk 0:00:54]} 33. Nc5 {[%clk 0:01:03]}  Kg6 {[%clk 0:00:32]} 34. Nxa6 {[%clk 0:00:52]}  Qa1 {[%clk 0:00:12]} 35. a5 {[%clk 0:00:44]}  Qf1 {[%clk 0:00:08]} 36. Nc5 {[%clk 0:00:43]}  Qxf3+ {[%clk 0:00:08]} 37. Qd3+ {[%clk 0:00:43]}  Qxd3+ {[%clk 0:00:08]} 38. Nxd3 {[%clk 0:00:44]}  f3 {[%clk 0:00:05]} 39. b5 {[%clk 0:00:41]}  Kf5 {[%clk 0:00:05]} 40. b6 {[%clk 0:00:41]}  Ke4 {[%clk 0:00:05]} 41. Nf2+ {[%clk 0:00:42]}  Ke3 {[%clk 0:00:05]} 42. b7 {[%clk 0:00:36]}  Be5 {[%clk 0:00:04]} 43. Ng4+ {[%clk 0:00:37]}  Ke2 {[%clk 0:00:04]} 44. Nxe5 {[%clk 0:00:35]}  f2 {[%clk 0:00:05]} 45. b8=Q {[%clk 0:00:36]}  f1=Q {[%clk 0:00:06]} 46. Qb5+ {[%clk 0:00:36]}  Ke1 {[%clk 0:00:05]} 47. Qxf1+ {[%clk 0:00:37]}  Kxf1 {[%clk 0:00:06]} 48. a6 {[%clk 0:00:38]} 1-0


[Site "https://www.chess.com"]

[Event "Titled Tuesday Blitz November 15 Late 2022"]
[White "Rodriguez Fontecha, Marcos"]
[Black "Rodriguez Santiago, Jaime"]
[WhiteFideId "2256576"]
[BlackFideId "3100898"]
[WhiteElo "2263"]
[BlackElo "2025"]
[Result "1-0"]
[Round "07"]
[TimeControl "180+1"]
[Date "2022.11.16"]
[WhiteClock "0:01:41"]
[BlackClock "0:01:10"]

1. e4 {[%clk 0:03:00]}  c6 {[%clk 0:02:59]} 2. d4 {[%clk 0:02:59]}  d5 {[%clk 0:02:59]} 3. Nc3 {[%clk 0:02:59]}  dxe4 {[%clk 0:02:59]} 4. Nxe4 {[%clk 0:03:00]}  Nf6 {[%clk 0:03:00]} 5. Nxf6+ {[%clk 0:03:00]}  exf6 {[%clk 0:03:01]} 6. c3 {[%clk 0:03:00]}  Bd6 {[%clk 0:03:01]} 7. Bd3 {[%clk 0:03:00]}  O-O {[%clk 0:03:02]} 8. Qc2 {[%clk 0:03:00]}  Re8+ {[%clk 0:03:02]} 9. Ne2 {[%clk 0:03:00]}  h5 {[%clk 0:03:02]} 10. Be3 {[%clk 0:02:59]}  Nd7 {[%clk 0:03:00]} 11. O-O-O {[%clk 0:02:59]}  Nf8 {[%clk 0:02:59]} 12. Ng3 {[%clk 0:02:59]}  Bg4 {[%clk 0:02:54]} 13. Rde1 {[%clk 0:02:49]}  h4 {[%clk 0:02:46]} 14. Nf5 {[%clk 0:02:49]}  h3 {[%clk 0:02:38]} 15. gxh3 {[%clk 0:02:41]}  Bxh3 {[%clk 0:02:37]} 16. Rhg1 {[%clk 0:02:36]}  Bxh2 {[%clk 0:02:16]} 17. Rxg7+ {[%clk 0:02:21]}  Kh8 {[%clk 0:02:13]} 18. Rxf7 {[%clk 0:02:09]}  Qd5 {[%clk 0:01:57]} 19. Qb3 {[%clk 0:01:46]}  Qxb3 {[%clk 0:01:26]} 20. axb3 {[%clk 0:01:47]}  Bxf5 {[%clk 0:01:13]} 21. Bxf5 {[%clk 0:01:48]}  Kg8 {[%clk 0:01:10]} 22. Rxb7 {[%clk 0:01:41]} 1-0


[Site "https://www.chess.com"]

[Event "Titled Tuesday Blitz November 15 Late 2022"]
[White "Romero Ruscalleda, Josep"]
[Black "Joubert, Dantelle"]
[WhiteFideId "2231859"]
[BlackFideId "14310813"]
[WhiteElo "2183"]
[BlackElo "1507"]
[Result "0-1"]
[Round "07"]
[TimeControl "180+1"]
[Date "2022.11.16"]
[WhiteClock "0:00:01"]
[BlackClock "0:00:04"]

1. e4 {[%clk 0:03:00]}  e5 {[%clk 0:02:59]} 2. Nf3 {[%clk 0:03:00]}  Nc6 {[%clk 0:02:58]} 3. Bc4 {[%clk 0:02:59]}  Bc5 {[%clk 0:02:57]} 4. c3 {[%clk 0:02:59]}  Nf6 {[%clk 0:02:56]} 5. b4 {[%clk 0:03:00]}  Be7 {[%clk 0:02:54]} 6. d3 {[%clk 0:03:01]}  O-O {[%clk 0:02:53]} 7. O-O {[%clk 0:03:00]}  d5 {[%clk 0:02:53]} 8. exd5 {[%clk 0:02:59]}  Nxd5 {[%clk 0:02:53]} 9. Re1 {[%clk 0:02:59]}  Nb6 {[%clk 0:02:48]} 10. Bb3 {[%clk 0:02:54]}  Bf5 {[%clk 0:02:43]} 11. Nxe5 {[%clk 0:02:44]}  Nxe5 {[%clk 0:02:38]} 12. Rxe5 {[%clk 0:02:44]}  Bxd3 {[%clk 0:02:37]} 13. Be3 {[%clk 0:02:30]}  Bd6 {[%clk 0:02:22]} 14. Rh5 {[%clk 0:02:20]}  Bg6 {[%clk 0:02:21]} 15. Rh3 {[%clk 0:02:16]}  Qf6 {[%clk 0:02:15]} 16. Bd4 {[%clk 0:02:09]}  Qf5 {[%clk 0:02:01]} 17. Nd2 {[%clk 0:02:00]}  Rad8 {[%clk 0:01:57]} 18. a4 {[%clk 0:01:41]}  a5 {[%clk 0:01:48]} 19. bxa5 {[%clk 0:01:17]}  Qxa5 {[%clk 0:01:47]} 20. Qf3 {[%clk 0:01:13]}  c5 {[%clk 0:01:33]} 21. Be3 {[%clk 0:00:52]}  Qxc3 {[%clk 0:01:32]} 22. Re1 {[%clk 0:00:46]}  c4 {[%clk 0:01:21]} 23. Bxb6 {[%clk 0:00:37]}  Qxd2 {[%clk 0:01:20]} 24. Rd1 {[%clk 0:00:36]}  Qb4 {[%clk 0:00:35]} 25. Bxd8 {[%clk 0:00:36]}  cxb3 {[%clk 0:00:35]} 26. Qxb3 {[%clk 0:00:15]}  Qxb3 {[%clk 0:00:21]} 27. Rxb3 {[%clk 0:00:15]}  Rxd8 {[%clk 0:00:22]} 28. Rc1 {[%clk 0:00:10]}  Be4 {[%clk 0:00:19]} 29. f3 {[%clk 0:00:07]}  Bc6 {[%clk 0:00:18]} 30. a5 {[%clk 0:00:06]}  g6 {[%clk 0:00:14]} 31. a6 {[%clk 0:00:06]}  Ba4 {[%clk 0:00:11]} 32. Rxb7 {[%clk 0:00:04]}  Kg7 {[%clk 0:00:08]} 33. a7 {[%clk 0:00:04]}  Bc5+ {[%clk 0:00:08]} 34. Kh1 {[%clk 0:00:03]}  Ra8 {[%clk 0:00:08]} 35. Ra1 {[%clk 0:00:02]}  Bc6 {[%clk 0:00:07]} 36. Rb8 {[%clk 0:00:02]}  Rxa7 {[%clk 0:00:07]} 37. Rc1 {[%clk 0:00:01]}  Ra5 {[%clk 0:00:05]} 38. Rc8 {[%clk 0:00:01]}  Be3 {[%clk 0:00:04]} 0-1


[Site "https://www.chess.com"]

[Event "Titled Tuesday Blitz November 15 Late 2022"]
[White "Rustemov, Alexander"]
[Black "Guz, Ari"]
[WhiteFideId "4119002"]
[BlackFideId "2825759"]
[WhiteElo "2821"]
[BlackElo "2205"]
[Result "1-0"]
[Round "07"]
[TimeControl "180+1"]
[Date "2022.11.15"]
[WhiteClock "0:01:13"]
[BlackClock "0:00:03"]

1. d4 {[%clk 0:03:00]}  d5 {[%clk 0:02:56]} 2. c4 {[%clk 0:03:01]}  e6 {[%clk 0:02:55]} 3. Nc3 {[%clk 0:03:01]}  a6 {[%clk 0:02:56]} 4. cxd5 {[%clk 0:03:01]}  exd5 {[%clk 0:02:57]} 5. Nf3 {[%clk 0:03:02]}  h6 {[%clk 0:02:57]} 6. Bf4 {[%clk 0:03:02]}  Nf6 {[%clk 0:02:57]} 7. e3 {[%clk 0:03:01]}  Bd6 {[%clk 0:02:57]} 8. Bxd6 {[%clk 0:03:00]}  Qxd6 {[%clk 0:02:57]} 9. Qc2 {[%clk 0:03:00]}  O-O {[%clk 0:02:55]} 10. h3 {[%clk 0:02:59]}  Re8 {[%clk 0:02:54]} 11. Bd3 {[%clk 0:03:00]}  c6 {[%clk 0:02:45]} 12. O-O {[%clk 0:03:00]}  Nbd7 {[%clk 0:02:38]} 13. Rfc1 {[%clk 0:03:00]}  Nf8 {[%clk 0:02:37]} 14. Rab1 {[%clk 0:02:56]}  Ne6 {[%clk 0:02:37]} 15. b4 {[%clk 0:02:54]}  Ng5 {[%clk 0:02:37]} 16. Ne5 {[%clk 0:02:38]}  Be6 {[%clk 0:01:54]} 17. f4 {[%clk 0:02:36]}  Nge4 {[%clk 0:01:53]} 18. Bxe4 {[%clk 0:02:31]}  Nxe4 {[%clk 0:01:52]} 19. Nxe4 {[%clk 0:02:22]}  dxe4 {[%clk 0:01:53]} 20. Qc5 {[%clk 0:02:18]}  Qd8 {[%clk 0:01:27]} 21. a4 {[%clk 0:02:16]}  Qh4 {[%clk 0:01:23]} 22. Qc2 {[%clk 0:02:09]}  Bd5 {[%clk 0:01:15]} 23. Qf2 {[%clk 0:02:08]}  Qe7 {[%clk 0:01:12]} 24. f5 {[%clk 0:02:00]}  Qd6 {[%clk 0:00:52]} 25. a5 {[%clk 0:01:52]}  Rxe5 {[%clk 0:00:41]} 26. dxe5 {[%clk 0:01:51]}  Qxe5 {[%clk 0:00:42]} 27. Rd1 {[%clk 0:01:45]}  Rd8 {[%clk 0:00:38]} 28. Rd4 {[%clk 0:01:44]}  Rd6 {[%clk 0:00:37]} 29. Rf1 {[%clk 0:01:41]}  Rf6 {[%clk 0:00:34]} 30. Qf4 {[%clk 0:01:40]}  Qe7 {[%clk 0:00:32]} 31. Qb8+ {[%clk 0:01:37]}  Kh7 {[%clk 0:00:32]} 32. Rf4 {[%clk 0:01:36]}  Qd7 {[%clk 0:00:23]} 33. Qe5 {[%clk 0:01:32]}  Kg8 {[%clk 0:00:18]} 34. Qxe4 {[%clk 0:01:30]}  Rd6 {[%clk 0:00:13]} 35. Qd3 {[%clk 0:01:27]}  Qe7 {[%clk 0:00:05]} 36. e4 {[%clk 0:01:25]}  Qe5 {[%clk 0:00:03]} 37. exd5 {[%clk 0:01:24]}  Rxd5 {[%clk 0:00:02]} 38. Rxd5 {[%clk 0:01:23]}  Qxf4 {[%clk 0:00:02]} 39. Rd8+ {[%clk 0:01:20]}  Kh7 {[%clk 0:00:02]} 40. Rd4 {[%clk 0:01:19]}  Qc1+ {[%clk 0:00:02]} 41. Kh2 {[%clk 0:01:19]}  f6 {[%clk 0:00:03]} 42. Qg3 {[%clk 0:01:13]} 1-0


[Site "https://www.chess.com"]